lending/lending_fUSD_20260325
["ID","MTS","AMOUNT","RATE_DAILY","PERIOD"]
[408900588,1774417843841,-414.38,0.0001538,2]
[408900589,1774417843851,-1345.0,0.00015381,2]
[408900590,1774417843860,-621.0,0.00015381,2]
[408900591,1774417843869,-3516.0,0.00015381,2]
[408900592,1774417843879,-1262.0,0.00015381,2]
[408900593,1774417843888,-1216.0,0.00015381,2]
[408900594,1774417843897,-150.0,0.00015381,2]
[408900595,1774417843906,-924.0,0.00015381,2]
[408900596,1774417843915,-6010.0,0.00015381,2]
[408900597,1774417843924,-415.0,0.00015381,2]
[408900598,1774417843934,-3763.0,0.00015381,2]
[408900599,1774417843943,-151.0,0.00015385,2]
[408900600,1774417844190,-194.72792766,0.00015385,2]
[408900601,1774417844200,-200.0,0.00015385,2]
[408900602,1774417844210,-980.15080658,0.00015398,2]
[408900603,1774417844219,-155.0,0.00015399,2]
[408900604,1774417844228,-1100.0,0.000154,5]
[408900605,1774417844238,-350.0,0.00015435,3]
[408900606,1774417844248,-1500.0,0.00015452,2]
[408900607,1774417844257,-1200.0,0.00015452,2]
[408900608,1774417844266,-1000.0,0.00015465,2]
[408900609,1774417844276,-168.7581349,0.0001547,2]
[408900610,1774417844285,-791.4101265,0.00015474,2]
[408900611,1774417844295,-158.7315527,0.00015474,2]
[408900612,1774417844304,-208.08,0.00015476,2]
[408900613,1774417844313,-1600.0,0.00015479,2]
[408900614,1774417844322,-265.65,0.00015494,2]
[408900615,1774417844332,-2987.17,0.000155,2]
[408900616,1774417844342,-200.0,0.000155,5]
[408900617,1774417844351,-3231.0,0.00015504,2]
[408900618,1774417844360,-1528.0949321,0.00015507,2]
[408900619,1774417844369,-3231.0,0.00015547,2]
[408900620,1774417844378,-1000.0,0.00015548,2]
[408900621,1774417844388,-1000.0,0.00015548,2]
[408900622,1774417844398,-1000.0,0.00015548,2]
[408900623,1774417844407,-509.09640198,0.00015548,2]
[408900624,1774417844416,-1000.0,0.00015548,2]
[408900625,1774417844425,-1000.0,0.00015548,2]
[408900626,1774417844434,-380.414142,0.00015548,2]
[408900627,1774417844444,-380.414142,0.00015548,2]
[408900628,1774417844453,-380.414142,0.00015548,2]
[408900629,1774417844462,-380.414142,0.00015548,2]
[408900630,1774417844471,-151.0,0.00015548,2]
[408900631,1774417844480,-301.565904,0.00015548,2]
[408900632,1774417844490,-301.565904,0.00015548,2]
[408900633,1774417844500,-301.565904,0.00015548,2]
[408900634,1774417844509,-151.0,0.00015548,2]
[408900635,1774417844518,-301.565904,0.00015548,2]
[408900636,1774417844527,-3231.0,0.00015557,2]
[408900637,1774417844537,-2500.0,0.00015564,2]
[408900638,1774417844546,-3300.19,0.000156,2]
[408900639,1774417844555,-3164.72,0.000156,2]
[408900640,1774417844564,-200.0,0.000156,5]
[408900641,1774417844574,-969.83,0.000156,2]
[408900642,1774417844583,-5374.22770706,0.00015611,2]
[408900643,1774417844593,-1000.0,0.00015615,2]
[408900644,1774417844602,-151.0,0.00015619,2]
[408900645,1774417844611,-151.0,0.00015619,2]
[408900646,1774417844620,-151.0,0.00015619,2]
[408900647,1774417844630,-7688.14588221,0.00015619,2]
[408900648,1774417844639,-3231.0,0.00015622,2]
[408900649,1774417844648,-1000.0,0.00015635,2]
[408900650,1774417844658,-1000.0,0.00015637,2]
[408900651,1774417844667,-1000.0,0.00015637,2]
[408900652,1774417844676,-678.46251045,0.00015637,2]
[408900653,1774417844686,-1000.0,0.00015637,2]
[408900654,1774417844695,-1000.0,0.00015637,2]
[408900655,1774417844705,-1000.0,0.00015637,2]
[408900656,1774417844715,-1000.0,0.00015637,2]
[408900657,1774417844724,-1000.0,0.00015637,2]
[408900658,1774417844734,-1000.0,0.00015637,2]
[408900659,1774417844743,-1000.0,0.00015637,2]
[408900660,1774417844753,-1000.0,0.00015637,2]
[408900661,1774417844762,-3231.0,0.00015646,2]
[408900662,1774417844772,-2788.68287909,0.0001568,2]
[408900663,1774417844781,-1569.0,0.0001568,2]
[408900664,1774417844790,-432.60864,0.00015688,2]
[408900665,1774417844800,-432.60864,0.00015688,2]
[408900666,1774417844809,-432.60864,0.00015688,2]
[408900667,1774417844819,-432.60864,0.00015688,2]
[408900668,1774417844828,-200.0,0.000157,5]
[408900669,1774417844838,-433.0,0.00015711,2]
[408900670,1774417844847,-3231.0,0.00015752,2]
[408900671,1774417844856,-153.773105,0.000158,2]
[408900672,1774417844866,-393.060209,0.000158,2]
[408900673,1774417844876,-393.060209,0.000158,2]
[408900674,1774417844885,-393.060209,0.000158,2]
[408900675,1774417844895,-177.909961,0.000158,2]
[408900676,1774417844904,-177.909961,0.000158,2]
[408900677,1774417844914,-393.060209,0.000158,2]
[408900678,1774417844924,-177.909961,0.000158,2]
[408900679,1774417844933,-177.909961,0.000158,2]
[408900680,1774417844943,-819.932307,0.000158,2]
[408900681,1774417844952,-819.932307,0.000158,2]
[408900682,1774417844963,-819.932307,0.000158,2]
[408900683,1774417844974,-819.932307,0.000158,2]
[408900684,1774417844983,-200.0,0.000158,5]
[408900685,1774417844993,-281.11467,0.0001584,2]
[408900686,1774417845002,-281.11468,0.0001584,2]
[408900687,1774417845014,-281.11468,0.0001585,2]
[408900688,1774417845023,-1169.71,0.00015862,2]
[408900689,1774417845033,-150.0,0.0001587,2]
[408900690,1774417845043,-150.0,0.0001587,2]
[408900691,1774417845052,-10000.0,0.0001589,2]
[408900692,1774417845062,-2000.0,0.0001589,2]
[408900693,1774417845071,-1460.89424342,0.00015896,2]
[408900694,1774417845081,-356.25695302,0.00015896,2]
[408900695,1774417845090,-7688.14588221,0.000159,2]
[408900696,1774417845100,-600.0,0.000159,5]
[408900697,1774417845109,-294.2387054,0.000159,2]
[408900698,1774417845118,-336.01956706,0.000159,2]
[408900699,1774417845128,-5374.22770706,0.000159,2]
[408900700,1774417845138,-1329.55352965,0.000159,2]
[408900701,1774417845147,-2000.0,0.000159,2]
[408900702,1774417845156,-167.64656967,0.000159,2]
[408900703,1774417845165,-164.25822179,0.000159,2]
[408900704,1774417845175,-873.6,0.00015913,2]
[408900705,1774417845185,-151.0,0.00015933,2]
[408900706,1774417845195,-201.93286099,0.00015933,2]
[408900707,1774417845204,-200.0,0.00015933,2]
[408900708,1774417845214,-1508.775689,0.00015961,7]
[408900709,1774417845230,-3746.0,0.00015973,2]
[408900710,1774417845239,-173.13019174,0.00015989,2]
[408900711,1774417845250,-3231.0,0.00015995,2]
[408900712,1774417845259,-151.0,0.00015997,2]
[408900713,1774417845268,-151.0,0.00015997,2]
[408900714,1774417845278,-500.0,0.00015998,2]
[408900715,1774417845287,-1134.0357001,0.00015999,2]
[408900716,1774417845296,-85952.1260766,0.00015999,2]
[408900717,1774417845305,-2678.8555499,0.00015999,2]
[408900718,1774417845315,-150.0,0.00015999,2]
[408900719,1774417845324,-1059.40403257,0.00015999,2]
[408900720,1774417845333,-150.0,0.00015999,2]
[408900721,1774417845343,-11980.29999385,0.00015999,2]
[408900722,1774417845352,-20319.0785847,0.00015999,2]
[408900723,1774417845361,-158.652186,0.00015999,2]
[408900724,1774417845370,-158.652186,0.00015999,2]
[408900725,1774417845379,-158.652186,0.00015999,2]
[408900726,1774417845388,-158.652186,0.00015999,2]
[408900727,1774417845397,-151.0,0.00015999,2]
[408900728,1774417845406,-151.0,0.00015999,2]
[408900729,1774417845415,-151.0,0.00015999,2]
[408900730,1774417845424,-151.0,0.00015999,2]
[408900731,1774417845434,-151.0,0.00015999,2]
[408900732,1774417845443,-432.60864,0.00015999,2]
[408900733,1774417845452,-432.60864,0.00015999,2]
[408900734,1774417845461,-432.60864,0.00015999,2]
[408900735,1774417845471,-432.60864,0.00015999,2]
[408900736,1774417845480,-393.060209,0.00015999,2]
[408900737,1774417845489,-393.060209,0.00015999,2]
[408900738,1774417845500,-393.060209,0.00015999,2]
[408900739,1774417845510,-177.909961,0.00015999,2]
[408900740,1774417845520,-177.909961,0.00015999,2]
[408900741,1774417845530,-393.060209,0.00015999,2]
[408900742,1774417845539,-177.909961,0.00015999,2]
[408900743,1774417845548,-177.909961,0.00015999,2]
[408900744,1774417845557,-819.932307,0.00015999,2]
[408900745,1774417845566,-819.932307,0.00015999,2]
[408900746,1774417845576,-819.932307,0.00015999,2]
[408900747,1774417845585,-819.932307,0.00015999,2]
[408900748,1774417845594,-380.414142,0.00015999,2]
[408900749,1774417845604,-380.414142,0.00015999,2]
[408900750,1774417845613,-380.414142,0.00015999,2]
[408900751,1774417845622,-380.414142,0.00015999,2]
[408900752,1774417845631,-151.0,0.00015999,2]
[408900753,1774417845641,-301.565904,0.00015999,2]
[408900754,1774417845650,-301.565904,0.00015999,2]
[408900755,1774417845659,-301.565904,0.00015999,2]
[408900756,1774417845669,-301.565904,0.00015999,2]
[408900757,1774417845678,-3231.0,0.00015999,2]
[408900758,1774417845688,-675.0,0.00016,5]
[408900759,1774417845697,-105758.29954987,0.00016,2]
[408900760,1774417845723,-946.05260061,0.00016,2]
[408900761,1774417845734,-259.39905185,0.00016,2]
[408900762,1774417845909,-673.3310658,0.00016,2]
[408900763,1774417845929,-562.39994,0.00016,2]
[408900764,1774417845940,-345.0,0.00016,2]
[408900765,1774417846293,-500.0,0.00013481,2]
[408900766,1774417846303,-22300.74922998,0.00016,2]
[408900767,1774417846314,-491.65400287,0.00016,2]
[408900768,1774417846351,-3562.19890709,0.00016,2]
[408900769,1774417846362,-38732.44000089,0.00016,2]
[408900789,1774417926369,231.49,0.00012647,2]
[408900790,1774417952757,150.79,7.16e-05,2]
[408900791,1774418061762,166.66,0.00012015,2]
[408900792,1774418061958,166.66,0.00012268,2]
[408900793,1774418062161,166.66,0.00012521,2]
[408900794,1774418087347,369.77,0.000116,2]
[408900795,1774418178861,200.0,0.00012647,2]
[408900801,1774418664635,1300.68,0.00012423,2]
[408900803,1774418841711,160.0,0.00017,120]
[408900804,1774418850998,499.08,0.00012302,2]
[408900806,1774418992008,1500.0,0.00012647,2]
[408900815,1774419032173,-166.66,0.00012692,2]
[408900816,1774419032183,-250.0,0.00012733,2]
[408900817,1774419032196,-166.66,0.00012774,2]
[408900818,1774419032205,-260.71436126,0.00012893,2]
[408900820,1774419032215,-478.05938721,0.000129,2]
[408900821,1774419032225,-301.34759009,0.00012999,2]
[408900822,1774419032235,-150.0,0.00012999,2]
[408900823,1774419032244,-300.0,0.00012999,2]
[408900824,1774419032254,-1200.0,0.00012999,2]
[408900825,1774419032264,-13493.06064504,0.00013,2]
[408900826,1774419032275,-12372.53301735,0.00013,2]
[408900827,1774419032303,-636.65095903,0.00013,2]
[408900828,1774419032315,-262.02687277,0.00013,2]
[408900829,1774419032326,-3031.8631592,0.00013,2]
[408900830,1774419032337,-607.56498033,0.00013,2]
[408900831,1774419032349,-2113.6046225,0.00013,2]
[408900832,1774419032363,-14301.21777574,0.00013,2]
[408900833,1774419032383,-592.07886631,0.00013,2]
[408900834,1774419032394,-26901.43397878,0.00013,2]
[408900835,1774419032403,-250.0,0.00013,2]
[408900836,1774419032412,-166.66,0.00013027,2]
[408900837,1774419032422,-3511.9359205,0.00013095,2]
[408900838,1774419032432,-8320.31138533,0.00013096,2]
[408900839,1774419032441,-166.66,0.00013111,2]
[408900840,1774419032452,-500.0,0.00013131,2]
[408900841,1774419032463,-500.0,0.00013131,2]
[408900842,1774419032472,-500.0,0.00013131,2]
[408900843,1774419032481,-500.0,0.00013131,2]
[408900844,1774419032490,-500.0,0.00013131,2]
[408900845,1774419032500,-500.0,0.00013131,2]
[408900846,1774419032510,-500.0,0.00013131,2]
[408900847,1774419032519,-500.0,0.00013131,2]
[408900848,1774419032528,-500.0,0.00013173,2]
[408900849,1774419032538,-500.0,0.00013173,2]
[408900850,1774419032547,-500.70912033,0.00013173,2]
[408900851,1774419032556,-10163.4846,0.00013173,2]
[408900852,1774419032566,-500.0,0.00013173,2]
[408900853,1774419032575,-500.0,0.00013173,2]
[408900854,1774419032584,-500.0,0.00013173,2]
[408900855,1774419032593,-500.0,0.00013173,2]
[408900856,1774419032602,-89346.79585861,0.00013195,2]
[408900857,1774419032614,-52132.33743047,0.00013195,2]
[408900858,1774419032625,-1258.9,0.00013195,2]
[408900859,1774419032636,-365.14676947,0.00013195,2]
[408900860,1774419032647,-2168.09710004,0.00013195,2]
[408900861,1774419032661,-374.94758386,0.00013195,2]
[408900862,1774419032672,-298.86,0.00013195,2]
[408900863,1774419032683,-856.08682692,0.00013195,2]
[408900866,1774419039051,-1627.45921772,0.00013195,2]
[408900867,1774419039062,-1337.35,0.00013195,2]
[408900868,1774419039073,-844.8506,0.00013195,2]
[408900869,1774419039084,-1000.51193,0.00013195,2]
[408900870,1774419039099,-306.47373244,0.00013195,2]
[408900871,1774419039110,-991.29302971,0.00013195,2]
[408900872,1774419039122,-436.75223375,0.00013195,2]
[408900873,1774419039133,-3150.75,0.00013195,2]
[408900874,1774419039145,-154024.92468701,0.00013195,2]
[408900875,1774419039155,-484.62989472,0.00013197,2]
[408900876,1774419039164,-150.0,0.000132,2]
[408900877,1774419039173,-3524.28,0.00013272,2]
[408900878,1774419039182,-500.0,0.00013273,2]
[408900879,1774419039191,-500.0,0.00013273,2]
[408900880,1774419039200,-500.0,0.00013273,2]
[408900881,1774419039209,-504.53950133,0.00013273,2]
[408900882,1774419039219,-500.0,0.00013273,2]
[408900883,1774419039228,-500.30562592,0.00013273,2]
[408900884,1774419039237,-501.56078272,0.00013273,2]
[408900885,1774419039246,-166.66,0.0001328,2]
[408900886,1774419039255,-1877.10530605,0.00013285,2]
[408900887,1774419039264,-1000.0,0.00013287,2]
[408900888,1774419039273,-151.0,0.00013288,2]
[408900889,1774419039282,-151.0,0.00013288,2]
[408900890,1774419039291,-151.0,0.00013288,2]
[408900891,1774419039300,-200.0,0.00013288,2]
[408900892,1774419039309,-151.0,0.00013288,2]
[408900893,1774419039318,-151.0,0.00013288,2]
[408900894,1774419039328,-151.0,0.00013288,2]
[408900895,1774419039337,-151.0,0.00013288,2]
[408900896,1774419039348,-151.0,0.00013288,2]
[408900897,1774419039358,-500.0,0.00013288,2]
[408900898,1774419039372,-151.0,0.00013288,2]
[408900899,1774419039383,-151.0,0.00013288,2]
[408900900,1774419039392,-500.0,0.00013288,2]
[408900901,1774419039403,-151.0,0.00013288,2]
[408900902,1774419039414,-500.0,0.00013288,2]
[408900903,1774419039423,-500.0,0.00013288,2]
[408900904,1774419039434,-500.0,0.00013288,2]
[408900905,1774419039445,-500.0,0.00013288,2]
[408900906,1774419039454,-500.0,0.00013288,2]
[408900907,1774419039463,-500.0,0.00013288,2]
[408900908,1774419039474,-500.0,0.00013288,2]
[408900909,1774419039486,-500.0,0.00013288,2]
[408900910,1774419039498,-152.03777968,0.00013288,2]
[408900911,1774419039510,-500.0,0.00013288,2]
[408900912,1774419039519,-500.0,0.00013288,2]
[408900913,1774419039528,-500.0,0.00013288,2]
[408900914,1774419039538,-500.0,0.00013288,2]
[408900915,1774419039548,-500.0,0.00013288,2]
[408900916,1774419039559,-500.0,0.00013288,2]
[408900917,1774419039568,-500.0,0.00013288,2]
[408900918,1774419039578,-584.87479624,0.00013288,2]
[408900919,1774419039587,-500.0,0.00013288,2]
[408900920,1774419039599,-154.74032172,0.00013293,2]
[408900921,1774419039610,-177.238,0.00013295,2]
[408900922,1774419039619,-4282.238,0.00013295,2]
[408900923,1774419039630,-1000.0,0.00013297,2]
[408900924,1774419039640,-6369.97975214,0.0001331,2]
[408900925,1774419039649,-494.0,0.00013334,2]
[408900926,1774419039659,-493.0,0.00013334,2]
[408900927,1774419039669,-922.0,0.00013346,2]
[408900928,1774419039678,-231.49,0.0001335,2]
[408900929,1774419039688,-8320.31138531,0.00013408,2]
[408900930,1774419039697,-3240.0,0.00013425,2]
[408900931,1774419039707,-3511.93592048,0.00013496,2]
[408900932,1774419039718,-484.62989464,0.00013497,2]
[408900933,1774419039730,-166.66,0.0001353,2]
[408900934,1774419039745,-683.67897871,0.00013541,2]
[408900935,1774419039754,-319.0,0.00013581,2]
[408900936,1774419039764,-195.2,0.00013696,2]
[408900937,1774419039774,-500.0,0.00013698,2]
[408900938,1774419039783,-500.0,0.00013698,2]
[408900939,1774419039792,-500.0,0.00013698,2]
[408900940,1774419039802,-500.0,0.00013698,2]
[408900941,1774419039811,-500.0,0.00013698,2]
[408900942,1774419039820,-511.55898747,0.00013698,2]
[408900943,1774419039829,-500.0,0.00013698,2]
[408900944,1774419039838,-513.92773084,0.00013698,2]
[408900945,1774419039847,-431.8713349,0.00013698,2]
[408900946,1774419039856,-483.0188777,0.00013698,2]
[408900947,1774419039866,-500.0,0.00013698,2]
[408900948,1774419039875,-500.0,0.00013698,2]
[408900949,1774419039884,-500.0,0.00013698,2]
[408900950,1774419039893,-500.0,0.00013698,2]
[408900951,1774419039902,-500.0,0.00013698,2]
[408900952,1774419039913,-500.0,0.00013698,2]
[408900953,1774419039923,-500.0,0.00013698,2]
[408900954,1774419039933,-496.98293292,0.00013698,2]
[408900955,1774419039942,-150.0,0.00013699,2]
[408900956,1774419039952,-200.0,0.00013699,2]
[408900957,1774419039962,-1172.8,0.00013699,2]
[408900958,1774419039972,-8320.31138531,0.00013719,2]
[408900959,1774419039982,-501.84702512,0.00013721,2]
[408900960,1774419039992,-1000.0,0.00013721,2]
[408900961,1774419040002,-501.34783032,0.00013721,2]
[408900962,1774419040011,-1000.0,0.00013721,2]
[408900963,1774419040021,-167.26,0.00013765,2]
[408900964,1774419040031,-484.62989464,0.00013798,2]
[408900965,1774419040041,-1000.0,0.00013821,2]
[408900966,1774419040050,-500.0,0.00013821,2]
[408900967,1774419040061,-200.0,0.00013836,2]
[408900968,1774419040070,-3511.93592048,0.00013896,2]
[408900969,1774419040080,-578.20924308,0.00013947,2]
[408900970,1774419040090,-721.12765535,0.00013947,2]
[408900971,1774419040099,-257.17964571,0.00013947,2]
[408900972,1774419040109,-500.0,0.00013947,2]
[408900973,1774419040119,-500.0,0.00013947,2]
[408900974,1774419040128,-500.0,0.00013947,2]
[408900975,1774419040137,-500.0,0.00013947,2]
[408900976,1774419040147,-500.0,0.00013947,2]
[408900977,1774419040156,-500.0,0.00013947,2]
[408900978,1774419040166,-500.0,0.00013947,2]
[408900979,1774419040175,-151.0,0.00013947,2]
[408900980,1774419040184,-500.0,0.00013947,2]
[408900981,1774419040194,-500.0,0.00013947,2]
[408900982,1774419040204,-500.0,0.00013947,2]
[408900983,1774419040213,-500.0,0.00013947,2]
[408900984,1774419040223,-500.0,0.00013947,2]
[408900985,1774419040233,-174.61919141,0.00013947,2]
[408900986,1774419040243,-200.0,0.00013947,2]
[408900987,1774419040254,-166.66,0.00013949,2]
[408900988,1774419040263,-1566.19615469,0.00013962,2]
[408900989,1774419040273,-250.0,0.00013962,2]
[408900990,1774419040283,-507.0,0.00014,2]
[408900991,1774419040292,-202.20503,0.00014,2]
[408900992,1774419040301,-500.0,0.00014002,2]
[408900993,1774419040311,-151.0,0.00014002,2]
[408900994,1774419040320,-500.0,0.0001402,2]
[408900995,1774419040330,-500.0,0.0001402,2]
[408900996,1774419040339,-8320.31138531,0.00014031,2]
[408900997,1774419040350,-231.49,0.00014053,2]
[408900998,1774419040360,-500.0,0.00014057,2]
[408901000,1774419040369,-151.0,0.00014057,2]
[408901002,1774419040383,-1200.0,0.00014082,2]
[408901004,1774419040393,-484.62989464,0.00014098,2]
[408901006,1774419040403,-255.0,0.00014104,2]
[408901008,1774419040412,-500.0,0.00014112,2]
[408901010,1774419040423,-151.0,0.00014112,2]
[408901012,1774419040433,-8422.59157237,0.00014115,2]
[408901015,1774419040454,-431.69598331,0.00014115,2]
[408901018,1774419040469,-2544.55788819,0.00014115,2]
[408901021,1774419040482,-1573.10601239,0.00014115,2]
[408901023,1774419040494,-12203.38094564,0.00014115,2]
[408901025,1774419040504,-500.0,0.00014167,2]
[408901027,1774419040515,-151.0,0.00014167,2]
[408901029,1774419040524,-500.0,0.00014222,2]
[408901031,1774419040536,-151.0,0.00014222,2]
[408901033,1774419040547,-420.0,0.00014256,2]
[408901034,1774419040556,-513.22473429,0.00014268,2]
[408901035,1774419040568,-986.77526571,0.00014268,2]
[408901036,1774419040578,-177.42834583,0.00014268,2]
[408901037,1774419040596,-1033.56296967,0.00014268,2]
[408901038,1774419040693,-417.91716859,0.00014268,2]
[408901039,1774419040703,-204.85985439,0.00014277,2]
[408901040,1774419040714,-265.96,0.00014277,2]
[408901041,1774419040873,-29.18014561,0.00014277,2]
[408901042,1774419040889,-151.0,0.00014277,2]
[408901043,1774419040901,-3511.93592048,0.00014297,2]
[408901044,1774419040916,-1680.0,0.00014299,2]
[408901045,1774419040929,-500.0,0.00014332,2]
[408901046,1774419040945,-151.0,0.00014332,2]
[408901047,1774419040961,-8320.31138531,0.00014342,2]
[408901048,1774419040975,-1300.0,0.00014356,2]
[408901049,1774419040988,-166.66,0.00014368,2]
[408901050,1774419041002,-1500.0,0.00014368,2]
[408901051,1774419041016,-1172.8,0.00014384,2]
[408901052,1774419041030,-500.0,0.00014387,2]
[408901053,1774419041044,-151.0,0.00014387,2]
[408901054,1774419041059,-484.62989464,0.00014398,2]
[408901055,1774419041074,-161.0,0.000144,2]
[408901056,1774419041090,-502.0,0.00014411,2]
[408901057,1774419041104,-500.0,0.00014442,2]
[408901058,1774419041118,-151.0,0.00014442,2]
[408901059,1774419041132,-181.08010149,0.00014495,2]
[408901060,1774419041146,-200.0,0.00014495,2]
[408901061,1774419041164,-500.0,0.00014497,2]
[408901062,1774419041178,-151.0,0.00014497,2]
[408901063,1774419041196,-197.2432,0.000145,2]
[408901064,1774419041208,-395.88318587,0.00014504,2]
[408901065,1774419041220,-299.99,0.00014504,2]
[408901066,1774419041236,-9999.99,0.00014504,2]
[408901067,1774419041249,-1548.06,0.00014504,2]
[408901068,1774419041260,-150.99,0.00014504,2]
[408901069,1774419041273,-999.99,0.00014504,2]
[408901070,1774419041287,-150.99,0.00014504,2]
[408901071,1774419041298,-1618.89,0.00014504,2]
[408901072,1774419041313,-9999.99,0.00014504,2]
[408901073,1774419041340,-6286.74,0.00014504,2]
[408901074,1774419041353,-7599.84,0.00014504,2]
[408901075,1774419041368,-4999.99,0.00014504,2]
[408901076,1774419041386,-8320.31138531,0.00014654,2]
[408901077,1774419041399,-3511.93592048,0.00014698,2]
[408901078,1774419041413,-484.62989464,0.00014699,2]
[408901079,1774419041426,-231.49,0.00014755,2]
[408901080,1774419041440,-154.32737496,0.0001477,2]
[408901081,1774419041454,-166.66,0.00014787,2]
[408901082,1774419041467,-2000.0,0.00014816,2]
[408901083,1774419041481,-160.0,0.00014964,2]
[408901084,1774419041494,-979.16666667,0.00014964,2]
[408901085,1774419041507,-8320.31138531,0.00014965,2]
[408901086,1774419041521,-484.62989464,0.00014999,2]
[408901087,1774419041534,-300.0,0.00015,2]
[408901088,1774419041547,-1216.0,0.00015023,2]
[408901089,1774419041560,-924.0,0.00015023,2]
[408901090,1774419041572,-418.0,0.00015033,2]
[408901091,1774419041585,-2835.0,0.0001504,2]
[408901092,1774419041598,-1568.0,0.0001504,2]
[408901093,1774419041611,-383.15,0.00015042,2]
[408901094,1774419041623,-187.78006525,0.00015043,2]
[408901095,1774419041635,-6010.0,0.00015045,2]
[408901096,1774419041648,-2467.0,0.00015045,2]
[408901097,1774419041660,-415.0,0.00015045,2]
[408901098,1774419041673,-1172.8,0.00015068,2]
[408901099,1774419041686,-3511.93592048,0.00015099,2]
[408901100,1774419041698,-153.0,0.0001521,2]
[408901101,1774419041711,-154.03363375,0.0001521,2]
[408901102,1774419041723,-8320.31138531,0.00015277,2]
[408901103,1774419041736,-484.62989464,0.00015299,2]
[408901104,1774419041749,-433.0,0.000153,2]
[408901105,1774419041761,-516.25712777,0.00015321,2]
[408901106,1774419041774,-500.0,0.00015321,2]
[408901107,1774419041786,-356.41365572,0.00015364,2]
[408901108,1774419041799,-406.64,0.00015364,2]
[408901109,1774419041812,-2500.0,0.00015364,2]
[408901110,1774419041824,-150.0,0.00015381,2]
[408901111,1774419041836,-150.0,0.00015381,2]
[408901112,1774419041849,-150.0,0.00015381,2]
[408901113,1774419041860,-150.0,0.00015381,2]
[408901114,1774419041873,-150.0,0.00015381,2]
[408901115,1774419041884,-150.0,0.00015381,2]
[408901116,1774419041897,-150.0,0.00015381,2]
[408901117,1774419041909,-150.0,0.00015381,2]
[408901118,1774419041920,-150.0,0.00015381,2]
[408901119,1774419041934,-150.0,0.00015381,2]
[408901120,1774419041948,-150.0,0.00015381,2]
[408901121,1774419041960,-150.0,0.00015381,2]
[408901122,1774419041973,-625.827,0.00015381,2]
[408901123,1774419041986,-1345.0,0.00015381,2]
[408901124,1774419042000,-3516.0,0.00015381,2]
[408901125,1774419042013,-150.0,0.00015381,2]
[408901126,1774419042025,-1262.0,0.00015381,2]
[408901127,1774419042038,-312.0,0.000154,2]
[408901128,1774419042052,-1200.0,0.00015452,2]
[408901129,1774419042065,-231.49,0.00015458,2]
[408901130,1774419042078,-195.2,0.00015465,2]
[408901131,1774419042091,-3511.93592048,0.00015499,2]
[408901132,1774419042105,-550.0,0.000155,2]
[408901133,1774419042117,-167.26,0.00015523,2]
[408901134,1774419042130,-8320.31138531,0.00015588,2]
[408901135,1774419042143,-194.72792766,0.00015591,2]
[408901136,1774419042157,-484.62989464,0.000156,2]
[408901137,1774419042170,-587.0,0.00015634,2]
[408901138,1774419042184,-449.0,0.0001568,5]
[408901139,1774419042197,-2202.02203202,0.0001568,2]
[408901140,1774419042211,-310.0,0.0001568,2]
[408901141,1774419042224,-1104.41048168,0.0001568,2]
[408901142,1774419042237,-1063.95533901,0.0001568,2]
[408901143,1774419042250,-1149.45312433,0.0001568,2]